Cogmind - Beta 15 @@@ ROGUE MODE // 2025.08.08 @ 14:08:31 Player: Infomantis Result: Escaped! Performance ------------- Evolutions (9) 4500 Regions Visited (16) 3200 Robots Destroyed (137) 685 Value Destroyed (4313) 4313 Prototype IDs (22) 440 Alien Tech Used (0) 0 Bonus (7139) 7139 TOTAL SCORE: 20277 Bonus ------- High Alert Combat Kills 64 Follower Combat Kills 479 Entered Garrisons 200 Entered DSFs 500 Delivered SUBCON Basin 2000 Registered with UFD 300 Met Optimus in HQ 500 Met Data Miner 300 Win 3000 Friendly Fire -204 Cogmind --------- Core Integrity 1525/1600 Matter 280/300 Energy 191/200 System Corruption 0% Temperature Cool (32) Movement Flying (27) Location To Epsilon Eridani Parts ------- > --- POWER (3) -------- Improved Fusion Compressor Micro Antimatter Reactor Micro Antimatter Reactor > --- PROPULSION (7) --- Xenon Bombardment Thruster Biomechanical Wings Field Propulsion Array Impulse Thruster Array Cooled Q-thruster > --- UTILITY (10) ----- Medium Storage Unit Gravity Neutralizer Advanced Sensor Array Advanced Signal Interpreter Advanced Melee Analysis Suite Nanoactuators Light Regenerative Plating Hacking Suite Improved Hacking Suite Drone Bay (2/2) > --- WEAPON (5) ------- Great Axe Power Sword Plasma Lance > --- INVENTORY (10) --- Xenon Bombardment Thruster Xenon Bombardment Thruster Advanced Cryofiber Web Energy Well (350) Matter Compressor (250) Advanced Terrain Scan Processor ECM Suite Advanced System Shield Enhanced Nova Cannon Multitool Peak State ------------ > --- POWER ------------ Improved Fusion Compressor Micro Antimatter Reactor Micro Antimatter Reactor > --- PROPULSION ------- Xenon Bombardment Thruster Biomechanical Wings Field Propulsion Array Impulse Thruster Array Cooled Q-thruster > --- UTILITY ---------- Medium Storage Unit Gravity Neutralizer Advanced Sensor Array Advanced Signal Interpreter Advanced Melee Analysis Suite Nanoactuators Light Regenerative Plating Hacking Suite Improved Hacking Suite Drone Bay > --- WEAPON ----------- Enhanced Nova Cannon Great Axe Power Sword Plasma Lance > --- INVENTORY -------- Xenon Bombardment Thruster Xenon Bombardment Thruster Advanced Cryofiber Web Energy Well Matter Compressor Advanced Terrain Scan Processor ECM Suite Advanced System Shield Multitool [Rating: 150] Favorites ----------- Power Fission Core Engine Deuterium Engine Power Core Fission Core Reactor Micro Antimatter Reactor Propulsion Light Treads Treads Light Treads Wheel Armored Huge Wheel Flight Unit VTOL Module Utility Large Storage Unit Device Cooling System Storage Large Storage Unit Processor Improved Signal Interpreter Hackware Hacking Suite Protection Hardened Light Armor Plating Weapon Gatling Laser Energy Gun Gatling Laser Energy Cannon Heavy Plasma Cannon Ballistic Gun Assault Rifle Ballistic Cannon Advanced Assault Cannon Launcher Shock Bomb Launcher Special Weapon Mining Laser Slashing Weapon Power Sword Piercing Weapon Plasma Lance Build | -11 -10 -10 -9 -9 -6 -6 -6 -6 -5 -5 -5 -4 -3 -3 -2 -1 ------- Run | Yrd Mat Sub Rec Scr Fac Low Low Dat Pro Fac Gar Fac Res DSF Res Acc Slots Evolved 18 | . . . . . 8 . . . . 2 . 2 2 . 2 2 Power 2 | . . . . . 1 . . . . . . 1 . . . . Propulsion 5 | . . . . . 2 . . . . . . 1 1 . . 1 Utility 8 | . . . . . 3 . . . . 1 . . 1 . 2 1 Weapon 3 | . . . . . 2 . . . . 1 . . . . . . Parts Attached 140 | 8 11 8 3 5 23 7 3 . . 31 2 23 5 1 2 8 Power 22 | 1 2 . 2 1 3 1 . . . 3 . 4 1 . 1 3 Engine 9 | 1 2 . 2 1 2 1 . . . . . . . . . . Core 8 | . . . . . 1 . . . . 3 . 3 . . . 1 Reactor 5 | . . . . . . . . . . . . 1 1 . 1 2 Propulsion 34 | 2 1 1 1 1 5 2 . . . 8 1 8 2 . . 2 Treads 12 | 2 1 . . . 5 2 . . . 1 1 . . . . . Leg . | . . . . . . . . . . . . . . . . . Wheel 4 | . . 1 1 1 . . . . . 1 . . . . . . Hover . | . . . . . . . . . . . . . . . . . Flight 18 | . . . . . . . . . . 6 . 8 2 . . 2 Utility 44 | 2 3 4 . 1 6 3 . . . 13 1 5 2 1 1 2 Device 25 | 1 2 3 . . 4 1 . . . 9 1 2 . . 1 1 Storage 7 | 1 1 1 . . 1 . . . . 2 . 1 . . . . Processor 5 | . . . . 1 . 1 . . . 1 . 1 . . . 1 Hackware 2 | . . . . . . . . . . 1 . . 1 . . . Protection 5 | . . . . . 1 1 . . . . . 1 1 1 . . Artifact . | . . . . . . . . . . . . . . . . . Weapon 40 | 3 5 3 . 2 9 1 3 . . 7 . 6 . . . 1 Energy Gun 11 | 1 2 1 . 1 4 . . . . 2 . . . . . . Energy Cannon 6 | . . . . . 2 . 1 . . 2 . . . . . 1 Ballistic Gun 9 | 2 2 1 . 1 1 . . . . . . 2 . . . . Ballistic Cannon 1 | . . . . . 1 . . . . . . . . . . . Launcher 5 | . . 1 . . . 1 2 . . 1 . . . . . . Special Weapon 2 | . 1 . . . 1 . . . . . . . . . . . Impact Weapon . | . . . . . . . . . . . . . . . . . Slashing Weapon 4 | . . . . . . . . . . . . 4 . . . . Piercing Weapon 2 | . . . . . . . . . . 2 . . . . . . Special Melee Weapon . | . . . . . . . . . . . . . . . . . Unidentified Prototypes 8 | . . . . . . . . . . 4 1 3 . . . . Corrupted Parts 1 | . . . . . . . . . . 1 . . . . . . System Corruption 10 | . . . . . . . . . . 10 . . . . . . Parts Lost 31 | . 1 2 . . . . . . . 23 1 1 . . 1 2 Power 3 | . . . . . . . . . . 2 . . . . 1 . Propulsion 6 | . . . . . . . . . . 5 . 1 . . . . Utility 12 | . 1 2 . . . . . . . 8 . . . . . 1 Weapon 10 | . . . . . . . . . . 8 1 . . . . 1 Highest Loss Streak 15 | . 1 1 . . . . . . . 15 3 1 . . 1 1 To Critical Strikes 1 | . . . . . . . . . . 1 . . . . . . Average Backups 17 | 4 14 13 16 25 15 13 13 13 13 13 4 9 9 10 9 9 Power . | . 1 . 1 1 . . . . . . 1 . . . . . Propulsion 2 | . 1 2 3 3 . . 1 1 1 . . . 2 1 1 1 Utility 8 | 1 7 4 6 11 8 6 6 6 6 6 2 4 6 8 6 6 Weapon 4 | 1 4 3 4 6 4 5 5 5 5 5 . 2 . . . . Tool/Special . | . . . . . . . . . . . . . . . . . Unused Backups 52 | 1 1 4 . 14 12 2 . . . 1 . 7 . . . 10 Power 4 | . 1 . . 1 . . . . . . . 2 . . . . Propulsion 9 | 1 . 1 . 1 . 1 . . . . . 2 . . . 3 Utility 26 | . . 3 . 6 8 1 . . . 1 . 2 . . . 5 Weapon 8 | . . . . 5 1 . . . . . . 1 . . . 1 Tool/Special 5 | . . . . 1 3 . . . . . . . . . . 1 Average Slot Usage (%) 86 | . 99 95 85 72 89 99 100 100 100 89 56 82 84 85 82 83 Engine 9 | . 14 14 14 14 8 6 6 6 6 4 . . . . . . Core 2 | . . . . . 3 6 6 6 6 4 5 14 12 9 2 1 Treads 12 | . 27 25 2 . 24 26 26 26 26 18 1 . . . . . Wheel 7 | . . 2 25 16 . . . . . . . . . . . . Flight 1 | . . . . . . . . . . 3 16 24 19 19 17 19 Device 7 | . 13 9 . . 15 13 13 13 13 15 8 13 9 9 11 15 Storage 8 | . 14 14 14 10 6 6 6 6 6 5 5 5 4 4 4 4 Processor 3 | . . . . 3 . 5 6 6 6 5 5 5 4 4 4 5 Protection 2 | . . . . . 2 6 6 6 6 3 . . 3 4 8 6 Energy Gun 14 | . 6 14 14 13 12 20 19 20 20 21 . . . . . . Energy Cannon 2 | . . . . . 7 5 5 6 5 . . . . . . . Ballistic Gun 7 | . 20 13 14 13 2 . . . . . . 1 . . . . Peak Build Rating 150 | 8 10 29 31 26 57 57 57 57 57 88 80 75 117 117 131 150 Average Rating 40 | 6 8 12 29 21 50 53 56 57 56 68 69 67 110 116 126 139 On Entrance 54 | . 7 9 29 13 26 57 54 57 57 57 72 57 75 117 115 129 Naked Turns . | . . . . . . . . . . . . . . . . . Heaviest Build 215 | 14 31 211 213 215 215 75 73 73 73 81 23 37 52 53 55 62 Greatest Support 106 | 40 40 40 30 30 91 96 96 96 96 106 87 37 56 56 56 62 Greatest Overweight (x) 21 | . . 10 10 21 7 . . . . 15 . 1 . . . . Average Overweight (x) 1 | . . 1 7 5 . . . . . . . . . . . . Largest Inventory Capacity 35 | 8 15 35 35 35 35 15 15 15 15 15 5 10 10 10 10 10 Average Capacity 20 | 7 14 18 35 28 16 15 15 15 15 13 5 9 10 10 10 10 Most Carried 35 | 8 15 29 35 35 35 15 15 15 15 15 5 10 10 10 10 10 Average Carried 19 | 4 14 16 30 25 16 14 14 15 14 13 4 9 9 9 9 9 Final Capacity 35 | 8 15 35 35 35 15 15 15 15 15 5 5 10 10 10 10 10 Final Carried 35 | 7 15 29 21 35 15 15 15 15 15 5 4 10 10 10 10 10 Class Distribution -------------------- 34% | Hauler-Mutant 27% | Derelict-Skirmisher 18% | Mutant 6% | Scavenger-Sprinter 3% | Tank Dominant Class ---------------- Mutant | -10/Materials Mutant | -10/Subcaves Hauler-Mutant | -9/Recycling Hauler-Mutant | -9/Scraptown Tank | -6/Factory Derelict-Skirmisher | -6/Lower Caves Derelict-Skirmisher | -6/Lower Caves Derelict-Skirmisher | -6/Data Miner Derelict-Skirmisher | -5/Proximity Caves Derelict-Skirmisher | -5/Factory Mutant | -5/Garrison Scavenger-Sprinter | -4/Factory Scavenger-Sprinter | -3/Research Scavenger-Sprinter | -3/DSF Scavenger-Sprinter | -2/Research Scavenger-Sprinter | -1/Access Resources | -11 -10 -10 -9 -9 -6 -6 -6 -6 -5 -5 -5 -4 -3 -3 -2 -1 ----------- Run | Yrd Mat Sub Rec Scr Fac Low Low Dat Pro Fac Gar Fac Res DSF Res Acc Matter Collected 4498 | 348 552 164 121 230 892 636 80 . 60 858 70 293 84 . 45 65 Remotely . | . . . . . . . . . . . . . . . . . Salvage Created 6422 | 225 697 215 368 . 527 332 70 . 113 2257 288 738 166 . 180 246 Parts 298 | 15 53 28 13 . 15 8 4 . 10 71 13 29 6 . 13 20 Haulers Intercepted 5 | . 2 . . . 1 . . . . 1 . 1 . . . . Recyclers Shooed 15 | . 1 . 4 . 1 . . . . 6 . 2 1 . . . Parts Field Recycled . | . . . . . . . . . . . . . . . . . Retrieved Matter . | . . . . . . . . . . . . . . . . . Parts Self-Destructed 69 | . . 14 . . . 23 21 . 11 . . . . . . . Prevented 4 | . . . . . . . 3 . 1 . . . . . . . Kills | -11 -10 -10 -9 -9 -6 -6 -6 -6 -5 -5 -5 -4 -3 -3 -2 -1 ------- Run | Yrd Mat Sub Rec Scr Fac Low Low Dat Pro Fac Gar Fac Res DSF Res Acc Combat Hostiles Destroyed 88 | . 15 7 1 . 8 4 1 . 8 30 1 6 . . 2 5 Melee 13 | . . . . . . . . . . . 1 5 . . 2 5 Guns 49 | . 15 5 1 . 7 2 1 . 2 15 . 1 . . . . Cannons 2 | . . . . . 1 . . . . 1 . . . . . . AOE 16 | . . 2 . . . 2 . . 6 6 . . . . . . Classes Destroyed 19 | 3 5 3 1 . 1 1 1 . 1 3 . . . . . . Worker 10 | 2 . . . . 1 . . . . 6 . . . . 1 . Builder 5 | . 1 . 1 . . . . . . 1 . . 1 . 1 . Tunneler 4 | 4 . . . . . . . . . . . . . . . . Hauler 5 | . 2 . . . 1 . . . . 1 . 1 . . . . Recycler 13 | 1 . . 4 . 1 . . . . 3 . 3 1 . . . Minesweeper 2 | . . . . . . 1 . . 1 . . . . . . . Mechanic 1 | . . . . . . . . . . 1 . . . . . . Operator 3 | . . . . . . . . . . 1 . 1 1 . . . Drone 1 | . . . . . . . . . 1 . . . . . . . Turret 2 | . . 2 . . . . . . . . . . . . . . Watcher 4 | . 1 . . . 1 . . . . 1 . . . . . 1 Swarmer 37 | . 5 4 . . 4 4 . . 7 4 . 5 . . . 4 Grunt 23 | . 10 . . . 3 . . . . 10 . . . . . . Sentry 4 | . . . 1 . . . . . . 3 . . . . . . Specialist 2 | . . . . . . . . . . 2 . . . . . . Hunter 8 | . . . . . . . 1 . . 7 . . . . . . Programmer 10 | . . . . . 1 . . . . 4 1 1 . . 2 1 Artisan 1 | . . 1 . . . . . . . . . . . . . . Subdweller 3 | . . 3 . . . . . . . . . . . . . . Packrat 3 | . . . . . . 3 . . . . . . . . . . Best Kill Streak 17 | 4 3 6 5 . 4 4 1 . 4 17 1 4 2 . 4 4 Combat Bots Only 11 | . 3 4 1 . 4 4 1 . 4 11 1 4 . . 2 4 Max Kills in Single Turn 5 | 1 2 2 1 . 2 2 1 . 2 5 1 1 1 . 1 1 Gunslinging 1 | . 1 1 . . 1 . . . . . . . . . . . Exploded 4 | . . 2 . . . 2 . . 2 4 . . . . . . Melee 1 | . . . . . . . . . . . 1 1 . . 1 1 Uniques/NPCs Destroyed . | . . . . . . . . . . . . . . . . . Combat | -11 -10 -10 -9 -9 -6 -6 -6 -6 -5 -5 -5 -4 -3 -3 -2 -1 -------- Run | Yrd Mat Sub Rec Scr Fac Low Low Dat Pro Fac Gar Fac Res DSF Res Acc Hostile Shots Fired 643 | . 76 32 12 . 47 7 1 . 17 301 48 37 . 3 28 34 Missed 235 | . 21 14 4 . 15 2 . . 6 110 12 17 . 2 15 17 Hits 408 | . 55 18 8 . 32 5 1 . 11 191 36 20 . 1 13 17 Melee 1 | . . . . . . . . . . . . 1 . . . . Projectile 407 | . 55 18 8 . 32 5 1 . 11 191 36 19 . 1 13 17 AOE 4 | . . 1 . . . . . . . 1 . 2 . . . . Critical Strikes 15 | . . 1 . . 1 . . . . 8 2 . . . 3 . Part Disruptions 7 | . . . . . . . . . . 4 1 1 . . 1 . Damage Taken 7174 | . 598 344 110 . 545 94 . . 225 3435 618 477 . 56 308 364 Core 1370 | . 125 29 40 . 30 20 . . 17 761 126 147 . . . 75 Absorbed by Shields 34 | . . . . . . . . . . 15 . . . 19 . . Redirected to Shielding 105 | . . . . . . . . . . . . . . . 29 76 Regen/Repaired (Parts) 500 | . 94 . . . . . . . . 122 . 57 . . 49 178 Core Remaining (%) 75 | 100 . . . 22 . . . . 92 . 11 87 . 100 100 95 Volleys Fired 229 | 17 51 16 18 . 26 11 5 . 12 67 . 4 . . . 2 Largest 5 | 2 2 2 2 . 4 4 4 . 4 5 . 2 . . . 1 Hottest 370 | 40 100 80 80 . 263 330 330 . 330 370 . 46 . . . 120 Shots Fired 527 | 34 100 29 36 . 60 32 12 . 25 189 . 8 . . . 2 Gun 451 | 34 98 27 36 . 40 30 6 . 18 154 . 8 . . . . Cannon 48 | . . . . . 20 1 4 . 2 19 . . . . . 2 Launcher 26 | . . 2 . . . 1 2 . 5 16 . . . . . . Special 2 | . 2 . . . . . . . . . . . . . . . Kinetic 166 | 34 75 16 18 . 9 1 . . 5 . . 8 . . . . Thermal 270 | . 20 12 18 . 48 31 10 . 20 109 . . . . . 2 Explosive 2 | . . . . . . . . . . 2 . . . . . . Electromagnetic 89 | . 5 1 . . 3 . 2 . . 78 . . . . . . Robot Hit Streak 25 | 6 13 10 24 . 11 18 6 . 9 25 . 4 . . . . Robot Miss Streak 7 | 2 3 3 1 . 4 4 2 . 7 4 . 5 . . . . Penetration Max . | . . . . . . . . . . . . . . . . . Secondary Targets 9 | . 1 2 . . 2 . . . . 4 . . . . . . Max Gunslinging Chain 2 | . 1 1 . . 2 . . . . 1 . . . . . . Shots Hit Robots 429 | 22 62 19 31 . 44 23 6 . 12 152 6 20 4 . 18 10 Core Hits 287 | 11 31 11 10 . 32 26 5 . 19 118 4 9 2 . 3 6 Critical Kills 1 | . 1 . . . . . . . . . . . . . . . Critical Parts Destroyed 1 | . . . 1 . . . . . . . . . . . . . Critical Strikes 10 | . 1 . 1 . . . . . . 3 1 1 . . 2 1 Destroy 2 | . 1 . 1 . . . . . . . . . . . . . Corrupt 3 | . . . . . . . . . . 3 . . . . . . Impale 5 | . . . . . . . . . . . 1 1 . . 2 1 Melee Attacks 95 | . . . . . . . . . . 5 8 26 7 . 28 21 Impact . | . . . . . . . . . . . . . . . . . Slashing 29 | . . . . . . . . . . . . 8 3 . 11 7 Piercing 66 | . . . . . . . . . . 5 8 18 4 . 17 14 Sneak Attacks 11 | . . . . . . . . . . 2 . 4 2 . 3 . Combat Hostiles . | . . . . . . . . . . . . . . . . . Follow-up Attacks 10 | . . . . . . . . . . . . . 1 . 7 2 Damage Inflicted 14425 | 215 780 648 535 . 1092 758 260 . 771 6094 420 1180 344 . 894 434 Guns 6962 | 215 767 320 535 . 725 643 90 . 262 3357 . 48 . . . . Cannons 883 | . . . . . 367 . 33 . . 483 . . . . . . Explosions 3080 | . . 328 . . . 115 137 . 509 1991 . . . . . . Melee 3459 | . . . . . . . . . . 235 420 1132 344 . 894 434 Ramming 41 | . 13 . . . . . . . . 28 . . . . . . Kinetic 2116 | 215 575 295 205 . 154 115 . . 509 . . 48 . . . . Thermal 5809 | . 127 341 330 . 878 643 123 . 262 3105 . . . . . . Explosive 533 | . . . . . . . . . . 533 . . . . . . Electromagnetic 2467 | . 65 12 . . 60 . 137 . . 2193 . . . . . . Impact . | . . . . . . . . . . . . . . . . . Slashing 569 | . . . . . . . . . . . . 247 53 . 188 81 Piercing 2890 | . . . . . . . . . . 235 420 885 291 . 706 353 Highest Corruption 25 | . . . . . . . . . . 23 25 . . . 3 . Average Corruption 8 | . . . . . . . . . . 7 23 . . . 2 . Corruption Purged . | . . . . . . . . . . . . . . . . . Corruption Blocked . | . . . . . . . . . . . . . . . . . Effects 31 | . . . . . . . . . . 24 3 . . . 4 . Message Errors 4 | . . . . . . . . . . 3 . . . . 1 . Matter Fused 6 | . . . . . . . . . . 5 1 . . . . . Heat Flow Errors 1 | . . . . . . . . . . 1 . . . . . . Energy Discharges 7 | . . . . . . . . . . 4 . . . . 3 . Parts Rejected 1 | . . . . . . . . . . . 1 . . . . . Data Loss (minor) 2 | . . . . . . . . . . 2 . . . . . . Data Loss (major) 1 | . . . . . . . . . . 1 . . . . . . Alerts 2 | . . . . . . . . . . 1 1 . . . . . Misdirections 6 | . . . . . . . . . . 6 . . . . . . Weapon Failures 1 | . . . . . . . . . . 1 . . . . . . Overload Shots . | . . . . . . . . . . . . . . . . . Overflow Damage 1003 | . . 22 . . 1 . . . 5 292 . 378 129 . 175 1 Projectiles 16 | . . . . . 1 . . . . 15 . . . . . . Explosions 139 | . . 22 . . . . . . 5 112 . . . . . . Melee 848 | . . . . . . . . . . 165 . 378 129 . 175 1 Knockbacks 1 | . 1 . . . . . . . . . . . . . . . Impact 1 | . 1 . . . . . . . . . . . . . . . Kinetic . | . . . . . . . . . . . . . . . . . Secondary . | . . . . . . . . . . . . . . . . . Self-Inflicted Damage 247 | . . 63 . . . . . . . 184 . . . . . . Shots 9 | . . 1 . . . . . . . 8 . . . . . . Rammed 4 | . 2 . . . . . . . . 2 . . . . . . Targets Rammed 4 | . 2 . . . . . . . . 2 . . . . . . Kicked . | . . . . . . . . . . . . . . . . . Crushed . | . . . . . . . . . . . . . . . . . Highest Temperature 272 | . 24 . 180 . 272 193 176 . 252 256 . . . . 1 156 Average Temperature 74 | . 11 . 86 . 82 81 74 . 101 78 . . . . 1 45 Received Heat Transfer 940 | . 246 24 45 . 123 . . . 12 463 . 18 . . . 9 Siege Activations . | . . . . . . . . . . . . . . . . . Martial Activations . | . . . . . . . . . . . . . . . . . Shielding Activations . | . . . . . . . . . . . . . . . . . Robots Disrupted . | . . . . . . . . . . . . . . . . . Combat Hostiles . | . . . . . . . . . . . . . . . . . Robots Corrupted 7 | . . . . . . . . . . 7 . . . . . . Combat Hostiles 6 | . . . . . . . . . . 6 . . . . . . Parts Fried 20 | . . . . . 1 . . . . 19 . . . . . . Impact Corruptions . | . . . . . . . . . . . . . . . . . Robots Melted 2 | . . . . . . . . . . 2 . . . . . . Combat Hostiles 2 | . . . . . . . . . . 2 . . . . . . Parts Melted 21 | . . . . . 4 1 1 . . 15 . . . . . . Heat Transferred 10855 | . 275 300 400 . 1825 1320 250 . 535 5950 . . . . . . Parts Sabotaged . | . . . . . . . . . . . . . . . . . Parts Stolen . | . . . . . . . . . . . . . . . . . Parts Stripped . | . . . . . . . . . . . . . . . . . Power Chain Reactions 6 | . . 1 . . . . . . . 5 . . . . . . Alert | -11 -10 -10 -9 -9 -6 -6 -6 -6 -5 -5 -5 -4 -3 -3 -2 -1 ------- Run | Yrd Mat Sub Rec Scr Fac Low Low Dat Pro Fac Gar Fac Res DSF Res Acc Maximum Alert Level 3 | . . . . . . . . . . 3 2 2 1 . . . Low Security (%) 83 | 100 100 . 100 . 100 . . . . 77 . . . 100 100 100 Level 1 5 | . . . . . . . . . . 9 . 24 100 . . . Level 2 10 | . . . . . . . . . . 10 100 75 . . . . Level 3 . | . . . . . . . . . . 2 . . . . . . Level 4 . | . . . . . . . . . . . . . . . . . Level 5 . | . . . . . . . . . . . . . . . . . High Security . | . . . . . . . . . . . . . . . . . Max Security . | . . . . . . . . . . . . . . . . . Peak Influence 836 | 10 165 . 91 . 103 . . . . 836 666 467 255 174 107 96 Initial 556 | . . . 18 . . . . . . 46 556 349 240 174 97 33 Average 108 | 1 72 . 16 . 29 . . . . 147 579 413 242 174 81 50 Influence Increases 4367 | 35 522 150 233 . 274 262 250 . 285 1458 120 414 42 . 69 253 Destroy 0b10 Robot/C 2040 | . 300 120 20 . 160 140 140 . 180 700 20 120 . . 40 100 Destroy 0b10 Robot/NC 270 | 35 20 . 25 . 20 5 . . 15 85 10 25 15 . 10 5 Destroy Leader 380 | . 56 . . . 34 30 30 . 20 146 10 22 . . 10 22 Allied During Kill 234 | . . . . . . 87 80 . 55 12 . . . . . . Successful Hack 142 | . 38 . 7 . 12 . . . . 26 . 14 27 . . 18 Select Force Hacks 210 | . 30 . 180 . . . . . . . . . . . . . Disable Machine 120 | . . . . . 30 . . . . 60 . 15 . . . 15 Anti-Garrison Action 50 | . . . . . . . . . . . 50 . . . . . Destroy Structure 321 | . 3 . 1 . 3 . . . . 234 . 8 . . 9 63 Partial Spotted 105 | . . . . . . . . . . 45 . 60 . . . . Lose Combat Pursuer 495 | . 75 30 . . 15 . . . 15 150 30 150 . . . 30 Influence Decreases 4281 | 35 393 241 271 . 237 299 250 . 210 738 249 621 269 58 187 223 Entered New Map 1060 | . . 63 20 . . 15 . . . 29 239 317 219 58 77 23 Time Decay 2766 | 35 388 168 251 . 237 284 230 . 210 339 . 294 50 . 100 180 Lost Part 295 | . 5 10 . . . . . . . 230 10 10 . . 10 20 Lost Ally 160 | . . . . . . . 20 . . 140 . . . . . . Squads Dispatched 32 | . 2 . . . 4 . . . . 16 . 7 . . . 3 Investigation 14 | . 2 . . . 1 . . . . 7 . 2 . . . 2 Extermination 7 | . . . . . 2 . . . . 2 . 2 . . . 1 Reinforcement 8 | . . . . . 1 . . . . 4 . 3 . . . . Assault . | . . . . . . . . . . . . . . . . . Garrison 3 | . . . . . . . . . . 3 . . . . . . Intercept . | . . . . . . . . . . . . . . . . . Searches Triggered . | . . . . . . . . . . . . . . . . . Data Miner Redirects 4 | . . . . . . . . . . 4 . . . . . . Construction Impeded 1 | . . . . . . . . . . 1 . . . . . . Haulers Reinforced 2 | . . . . . 1 . . . . . . 1 . . . . Active Scanning Responses . | . . . . . . . . . . . . . . . . . Cargo Convoy Interrupts 1 | . . . . . . . . . . 1 . . . . . . Stealth | -11 -10 -10 -9 -9 -6 -6 -6 -6 -5 -5 -5 -4 -3 -3 -2 -1 --------- Run | Yrd Mat Sub Rec Scr Fac Low Low Dat Pro Fac Gar Fac Res DSF Res Acc Distress Signals 15 | . 3 . . . 1 . . . 1 6 . 3 . . . 1 Communications Jammed 1 | . . . . . . . . . . 1 . . . . . . Distress Signals 1 | . . . . . . . . . . 1 . . . . . . Times Spotted 203 | . 25 8 1 . 13 7 6 . 8 74 8 28 1 1 6 17 Peak Tracking Total 12 | . 4 4 1 . 4 3 4 . 4 12 7 8 1 1 4 7 Tactical Retreats 20 | . 3 3 . . 1 . . . 1 5 1 4 . . . 2 Traps | -11 -10 -10 -9 -9 -6 -6 -6 -6 -5 -5 -5 -4 -3 -3 -2 -1 ------- Run | Yrd Mat Sub Rec Scr Fac Low Low Dat Pro Fac Gar Fac Res DSF Res Acc Traps Triggered 11 | . 1 1 . . 1 . . . . 4 1 1 . 1 . 1 Indirectly . | . . . . . . . . . . . . . . . . . Trap Hack Attempts . | . . . . . . . . . . . . . . . . . Triggered . | . . . . . . . . . . . . . . . . . Disarmed . | . . . . . . . . . . . . . . . . . Reprogrammed . | . . . . . . . . . . . . . . . . . Reused . | . . . . . . . . . . . . . . . . . Traps Extracted . | . . . . . . . . . . . . . . . . . Installed . | . . . . . . . . . . . . . . . . . Triggered . | . . . . . . . . . . . . . . . . . Most Traps Carried 1 | . . . . . . 1 1 . . . . . . . . . Machines | -11 -10 -10 -9 -9 -6 -6 -6 -6 -5 -5 -5 -4 -3 -3 -2 -1 ---------- Run | Yrd Mat Sub Rec Scr Fac Low Low Dat Pro Fac Gar Fac Res DSF Res Acc Machines Disabled 12 | . . 4 . . 2 . . . . 4 . 1 . . . 1 Max in Single Turn 3 | . . 3 . . 1 . . . . 1 . 1 . . . 1 Energy Cycler 1 | . . . . . . . . . . . . . . . . 1 Machines Repaired . | . . . . . . . . . . . . . . . . . Machines Dismantled . | . . . . . . . . . . . . . . . . . Machines Sabotaged . | . . . . . . . . . . . . . . . . . Overloaded Fab Kills . | . . . . . . . . . . . . . . . . . Hacking | -11 -10 -10 -9 -9 -6 -6 -6 -6 -5 -5 -5 -4 -3 -3 -2 -1 --------- Run | Yrd Mat Sub Rec Scr Fac Low Low Dat Pro Fac Gar Fac Res DSF Res Acc Machines Accessed 60 | . 7 2 10 2 3 1 . 4 . 14 1 6 4 . 2 4 Terminals 22 | . 5 . 4 . 3 . . . . 2 1 2 3 . 1 1 Fabricators 5 | . . . . . . . . . . 2 . 2 . . 1 . Repair Stations 7 | . 1 . . . . . . . . 2 . 1 1 . . 2 Recycling Units 13 | . 1 . 6 . . . . . . 6 . . . . . . Scanalyzers 1 | . . . . . . . . . . 1 . . . . . . Garrison Access 3 | . . . . . . . . . . 1 . 1 . . . 1 Total Hacks 154 | . 22 2 17 7 8 1 . 28 . 34 2 15 7 . 3 8 Successful 97 | . 15 2 7 7 2 1 . 28 . 19 1 8 3 . 1 3 Failed 56 | . 7 . 10 . 5 . . . . 15 1 7 4 . 2 5 Catastrophic 11 | . 2 . 2 . 1 . . . . 2 . 3 . . . 1 Database Lockouts 1 | . . . . . 1 . . . . . . . . . . . Manual 55 | . 14 . 12 . 2 . . . . 14 2 3 3 . . 5 Terminals 53 | . 16 . 10 . 8 . . . . 4 2 5 5 . 1 2 Fabricators 12 | . . . . . . . . . . 5 . 5 . . 2 . Repair Stations 18 | . 5 . . . . . . . . 3 . 4 2 . . 4 Recycling Units 20 | . 1 . 7 . . . . . . 12 . . . . . . Scanalyzers 9 | . . . . . . . . . . 9 . . . . . . Garrison Access 4 | . . . . . . . . . . 1 . 1 . . . 2 Terminal Hacks 52 | . 3 2 1 7 2 1 . 28 . 2 . 3 1 . 1 1 Record 18 | . . . . 7 . . . 11 . . . . . . . . Part Schematic 11 | . . . 1 . 1 . . 8 . 1 . . . . . . Robot Schematic 6 | . . . . . . . . 6 . . . . . . . . Robot Analysis 1 | . 1 . . . . . . . . . . . . . . . Prototype ID Bank 3 | . . . . . . . . 3 . . . . . . . . Open Door 2 | . . 1 . . . 1 . . . . . . . . . . Open DSF 1 | . . . . . . . . . . . . . 1 . . . Level Access Points 2 | . . . . . . . . . . . . 1 . . 1 . Branch Access Points 1 | . . . . . 1 . . . . . . . . . . . Terminal Index 1 | . 1 . . . . . . . . . . . . . . . Fabricator Index 1 | . . . . . . . . . . . . 1 . . . . Alert Level 1 | . . . . . . . . . . . . 1 . . . . Maintenance Status 2 | . 1 . . . . . . . . . . . . . . 1 Investigation Status 1 | . . . . . . . . . . 1 . . . . . . Release Object 1 | . . 1 . . . . . . . . . . . . . . Fabricator Hacks 5 | . . . . . . . . . . 2 . 3 . . . . Network Status 1 | . . . . . . . . . . 1 . . . . . . Load Schematic 2 | . . . . . . . . . . . . 2 . . . . Build 2 | . . . . . . . . . . 1 . 1 . . . . Repair Station Hacks 9 | . 4 . . . . . . . . 2 . 2 1 . . . Scan Component 5 | . 2 . . . . . . . . 1 . 1 1 . . . Repair 4 | . 2 . . . . . . . . 1 . 1 . . . . Recycling Unit Hacks . | . . . . . . . . . . . . . . . . . Scanalyzer 5 | . . . . . . . . . . 5 . . . . . . Insert Component 3 | . . . . . . . . . . 3 . . . . . . Analyze 2 | . . . . . . . . . . 2 . . . . . . Garrison Access Hacks 1 | . . . . . . . . . . 1 . . . . . . Unlock Access 1 | . . . . . . . . . . 1 . . . . . . Unauthorized Hacks 25 | . 8 . 6 . . . . . . 7 1 . 1 . . 2 Terminals 10 | . 7 . . . . . . . . 1 1 . 1 . . . Botnet 2 | . 1 . . . . . . . . . . . 1 . . . Operators 1 | . 1 . . . . . . . . . . . . . . . Skim 5 | . 5 . . . . . . . . . . . . . . . Search 1 | . . . . . . . . . . 1 . . . . . . Override 1 | . . . . . . . . . . . 1 . . . . . Fabricators . | . . . . . . . . . . . . . . . . . Repair Stations 3 | . . . . . . . . . . 1 . . . . . 2 Patch 3 | . . . . . . . . . . 1 . . . . . 2 Recycling Units 12 | . 1 . 6 . . . . . . 5 . . . . . . Reject 1 | . . . . . . . . . . 1 . . . . . . Tunnel 7 | . 1 . 6 . . . . . . . . . . . . . Fedlink 1 | . . . . . . . . . . 1 . . . . . . Scrapoids 3 | . . . . . . . . . . 3 . . . . . . Scanalyzers . | . . . . . . . . . . . . . . . . . Garrison Access . | . . . . . . . . . . . . . . . . . Data Cores Recovered 2 | . . . . . . . . . . . . 1 1 . . . Used 2 | . . . . . . . . . . . . 1 1 . . . Hacking Detections 34 | . 5 . 4 . 3 . . . . 9 1 5 3 . 1 3 Full Trace Events 5 | . . . 1 . 1 . . . . 1 . 2 . . . . Feedback Events . | . . . . . . . . . . . . . . . . . Feedback Blocked . | . . . . . . . . . . . . . . . . . Robot Schematics Acquired 6 | . . . . . . . . 6 . . . . . . . . Robots Built 3 | . . . . . . . . . . 3 . . . . . . Authchips . | . . . . . . . . . . . . . . . . . Time 134 | . . . . . . . . . . 134 . . . . . . Total Robot Build Rating 12 | . . . . . . . . . . 12 . . . . . . Part Schematics Acquired 26 | . . . 1 13 1 . . 8 . 3 . . . . . . Parts Built 1 | . . . . . . . . . . . . 1 . . . . Authchips . | . . . . . . . . . . . . . . . . . Time 152 | . . . . . . . . . . . . 152 . . . . Total Part Build Rating 5 | . . . . . . . . . . . . 5 . . . . Parts Repaired 4 | . 2 . . . . . . . . 1 . 1 . . . . Time 123 | . 52 . . . . . . . . 22 . 49 . . . . Parts Recycled . | . . . . . . . . . . . . . . . . . Recycled Matter . | . . . . . . . . . . . . . . . . . Retrieved Matter . | . . . . . . . . . . . . . . . . . Retrieved Components . | . . . . . . . . . . . . . . . . . Parts Scanalyzed 3 | . . . . . . . . . . 3 . . . . . . Part Schematics Acquired 2 | . . . . . . . . . . 2 . . . . . . Parts Damaged . | . . . . . . . . . . . . . . . . . Bothacking | -11 -10 -10 -9 -9 -6 -6 -6 -6 -5 -5 -5 -4 -3 -3 -2 -1 ------------ Run | Yrd Mat Sub Rec Scr Fac Low Low Dat Pro Fac Gar Fac Res DSF Res Acc Used RIF Installer . | . . . . . . . . . . . . . . . . . Robots Hacked . | . . . . . . . . . . . . . . . . . Non-combat . | . . . . . . . . . . . . . . . . . Combat . | . . . . . . . . . . . . . . . . . Robot Hacks Applied . | . . . . . . . . . . . . . . . . . Relay Couplers Released . | . . . . . . . . . . . . . . . . . Fabnet Peak Effective % . | . . . . . . . . . . . . . . . . . Robots Rewired . | . . . . . . . . . . . . . . . . . Allies Hacked . | . . . . . . . . . . . . . . . . . Hacks Repelled . | . . . . . . . . . . . . . . . . . Allies | -11 -10 -10 -9 -9 -6 -6 -6 -6 -5 -5 -5 -4 -3 -3 -2 -1 -------- Run | Yrd Mat Sub Rec Scr Fac Low Low Dat Pro Fac Gar Fac Res DSF Res Acc Total Allies 18 | . . . . . . 5 . . . 13 . . . . . . Largest Group 8 | . . . . . . 5 5 4 3 8 . . . . . . Highest-Rated Group 370 | . . . . . . 241 235 188 141 370 . . . . . . Highest-Rated Ally 50 | . . . . . . 50 47 47 47 47 . . . . . . Total Orders . | . . . . . . . . . . . . . . . . . Ally Attacks 155 | . . . . . . 37 46 . 20 52 . . . . . . Total Damage 3420 | . . . . . . 540 568 . 313 1999 . . . . . . Kills 23 | . . . . . . 3 6 . 4 10 . . . . . . Allies Corrupted 1 | . . . . . . . . . . 1 . . . . . . Allies Melted . | . . . . . . . . . . . . . . . . . Intel | -11 -10 -10 -9 -9 -6 -6 -6 -6 -5 -5 -5 -4 -3 -3 -2 -1 ------- Run | Yrd Mat Sub Rec Scr Fac Low Low Dat Pro Fac Gar Fac Res DSF Res Acc Active Infowar (turns) 8417 | 109 193 455 . . 602 1508 1642 144 1734 873 . 453 104 8 219 373 Sensors 7015 | . . . . . 2 1508 1642 144 1734 828 . 453 104 8 219 373 Traps 503 | . . . . . . . . . . 503 . . . . . . Seismic 1359 | 109 193 455 . . 602 . . . . . . . . . . . Cloaking 578 | . . . . . 578 . . . . . . . . . . . Jamming 255 | . . . . . . . . . . 255 . . . . . . Robot Analysis Total 1 | . 1 . . . . . . . . . . . . . . . Derelict Logs Recovered 7 | . . . . 3 . 1 1 . 2 . . . . . . . Drone Launches . | . . . . . . . . . . . . . . . . . Drone Recoveries . | . . . . . . . . . . . . . . . . . Exploration | -11 -10 -10 -9 -9 -6 -6 -6 -6 -5 -5 -5 -4 -3 -3 -2 -1 ------------- Run | Yrd Mat Sub Rec Scr Fac Low Low Dat Pro Fac Gar Fac Res DSF Res Acc Turns Passed 19059 | 211 1233 674 1059 6766 1325 1565 1642 144 1734 1282 60 653 104 15 219 373 Spaces Moved 12338 | 93 453 345 547 3401 699 918 997 88 1030 967 107 1193 253 30 452 765 Core 8 | 7 . . . . . . . . . 1 . . . . . . Treads 5013 | 86 453 289 . . 669 918 997 88 1030 479 4 . . . . . Legs . | . . . . . . . . . . . . . . . . . Wheels 4040 | . . 56 547 3401 30 . . . . 6 . . . . . . Hover . | . . . . . . . . . . . . . . . . . Flight 3277 | . . . . . . . . . . 481 103 1193 253 30 452 765 Fastest Speed 6 | 50 160 160 167 100 160 160 162 162 162 6 18 22 24 29 29 26 Average Speed 129 | 151 160 169 181 174 161 161 162 162 162 91 26 22 28 29 29 26 Slowest Speed 800 | 160 160 560 210 395 205 162 162 162 162 800 160 97 29 29 29 29 Overloaded Moves 13 | . . . . . . . . . . 13 . . . . . . Propulsion Burnouts . | . . . . . . . . . . . . . . . . . Robots Hopped 33 | . . . . . . . . . . 8 . 10 1 . 2 12 Potential Cave-ins 4 | . . . . . . . . . . 4 . . . . . . Cave-ins Triggered . | . . . . . . . . . . . . . . . . . Exploration Rate (%) 47 | 5 69 19 96 95 14 80 93 71 94 28 25 31 7 43 11 21 Regions Visited 16 Branch Regions 7 Pre-discovered Areas 10 | . 2 . 6 1 . . . 1 . . . . . . . . Known Exits Taken 10 | . 1 . . . 1 1 1 1 1 1 . 1 1 . 1 . Unknown Exits Taken 4 | 1 . 1 1 1 . . . . . . . . . . . . Scrap Searched 29 | . . 3 . 10 . 4 11 . 1 . . . . . . . Spaces Dug 76 | . 2 . . . . . 2 . . 63 . 3 . . 3 3 Terrain Destroyed 239 | . 2 30 . . 1 12 3 . 58 108 . 3 . . 3 19 Melee 10 | . . . . . . . . . . 1 . 3 . . 3 3 Projectile 12 | . 2 . . . 1 1 3 . 2 3 . . . . . . AOE 217 | . . 30 . . . 11 . . 56 104 . . . . . 16 Terrain Rammed . | . . . . . . . . . . . . . . . . . Walls Destroyed . | . . . . . . . . . . . . . . . . . Machines Disabled . | . . . . . . . . . . . . . . . . . Actions | -11 -10 -10 -9 -9 -6 -6 -6 -6 -5 -5 -5 -4 -3 -3 -2 -1 --------- Run | Yrd Mat Sub Rec Scr Fac Low Low Dat Pro Fac Gar Fac Res DSF Res Acc Total 14783 | 129 860 408 576 4262 842 975 1012 90 1071 1173 125 1519 278 35 519 909 Wait 1615 | 3 319 14 1 761 42 21 2 3 23 53 4 221 5 . 45 98 Move 12260 | 92 452 344 546 3400 698 917 996 87 1029 952 106 1173 250 29 447 742 Hop 28 | . . . . . . . . . . 6 . 9 1 . 2 10 Pick Up 178 | 7 10 17 5 66 20 8 1 . 1 14 . 12 6 1 3 7 Fast Attach 75 | 8 5 1 1 3 6 . . . . 21 3 21 1 . 1 4 Attach 45 | . . 3 . 2 10 2 . . . 15 1 4 3 . 2 3 Detach 14 | 1 . 1 1 . 1 . . . . 2 . 7 . . . 1 Swap 78 | . 11 5 2 1 13 7 6 . 4 21 . 3 2 1 . 2 Drop 140 | 1 10 7 2 29 25 9 2 . 1 14 3 20 6 1 2 8 Fire 229 | 17 51 16 18 . 26 11 5 . 12 67 . 4 . . . 2 Melee 74 | . . . . . . . . . . 5 8 26 4 . 17 14 Ram . | . . . . . . . . . . . . . . . . . Kick . | . . . . . . . . . . . . . . . . . Crush 4 | . 2 . . . . . . . . 2 . . . . . . Escape Stasis 40 | . . . . . . . . . . 1 . 18 . 3 . 18 Rewire . | . . . . . . . . . . . . . . . . . Trap . | . . . . . . . . . . . . . . . . . Miscellaneous 3 | . . . . . 1 . . . 1 . . 1 . . . . Route ------- -11/Scrapyard -10/Materials (discovered 5 exits: *Mat x3 / Min / *Sub) -10/Subcaves -9/Recycling (discovered 2 exits: *Fac / *Scr) -9/Scraptown (discovered 2 exits: *Fac x2) -6/Factory (discovered 4 exits: *Low x2 / Ext x2) -6/Lower Caves -6/Lower Caves (discovered 2 exits: *Fac / *Dat) -6/Data Miner -5/Proximity Caves -5/Factory (discovered 2 exits: Fac / Gar) -5/Garrison (discovered 3 exits: *Fac x3) -4/Factory (discovered 4 exits: *Res x4) -3/Research -3/DSF -2/Research (discovered 3 exits: *Acc x3) -1/Access To Epsilon Eridani History --------- Turn | Location | Event 4 | -11/Scrapyard | Discovered new exit (range 16) 212 | -11/Scrapyard | Entered Materials 310 | -10/Materials | Build established: Mutant 628 | -10/Materials | Discovered new exit (range 15) 770 | -10/Materials | Repaired Lgt. Treads 899 | -10/Materials | Repaired Assault Rifle 1032 | -10/Materials | Learned location of Subcaves (-10) 1084 | -10/Materials | Learned location of 1 exit from Storage 1126 | -10/Materials | Identified exit to Mines 1126 | -10/Materials | Identified exit to Subcaves 1159 | -10/Materials | Identified exit to Materials 1184 | -10/Materials | Loaded intel: 1 repair station location 1220 | -10/Materials | Learned location of 1 exit from Recycling 1265 | -10/Materials | Learned location of 1 exit from Storage 1318 | -10/Materials | Discovered exit to Materials (range 15) 1445 | -10/Materials | Entered Subcaves 1446 | -10/Subcaves | Approached by a straggling Scientist 1452 | -10/Subcaves | Ambushed by Subdwellers from Twisted Machinery 1592 | -10/Subcaves | Visited 4L-MR0's lab 1621 | -10/Subcaves | Core integrity fell below 50% 1880 | -10/Subcaves | Discovered new exit (range 11) 2005 | -10/Subcaves | Found SUBCON Basin 2119 | -10/Subcaves | Entered Recycling 2120 | -9/Recycling | Identified exit to Factory 2279 | -9/Recycling | Build established: Hauler-Mutant 3116 | -9/Recycling | Scanned before Scraplab entrance 3143 | -9/Recycling | Entered Scraplab 3173 | -9/Recycling | Discovered new exit (range 3) 3178 | -9/Recycling | Entered Scraptown 3311 | -9/Scraptown | Scanned Subdweller tech in exchange for log data 3315 | -9/Scraptown | Learned Research emergency access door positions 3316 | -9/Scraptown | Learned location of Warlord (-4) 3318 | -9/Scraptown | Learned location of 1 exit from Proximity Caves 3408 | -9/Scraptown | Discovered new exit (range 5) 4208 | -9/Scraptown | Visited Junk Repository 4278 | -9/Scraptown | Visited Comm Corps 4445 | -9/Scraptown | Visited Shadow of the Wyrm 4493 | -9/Scraptown | Visited Bundlers 4716 | -9/Scraptown | Visited Scrapoid Research Area 4761 | -9/Scraptown | Visited Cave Peace 4812 | -9/Scraptown | Visited Junk Repository 4894 | -9/Scraptown | Visited UFD Registry 4894 | -9/Scraptown | Registered with UFD as "Bullettalker" 4947 | -9/Scraptown | Visited Chapter 10 5123 | -9/Scraptown | Visited Derelict Rescue Squad 5176 | -9/Scraptown | Visited Science Testing Area 5223 | -9/Scraptown | Visited Research Penetration Think Tank 5316 | -9/Scraptown | Discovered new exit (range 5) 5484 | -9/Scraptown | Visited Abandonware Association 5504 | -9/Scraptown | Learned abandonware demo "REBOOT5.EXE" 5539 | -9/Scraptown | Visited A0-MCA Data Center 5576 | -9/Scraptown | Visited DA-N13 Charitable Foundation 5594 | -9/Scraptown | Found DCF Scrap (28 items) 5723 | -9/Scraptown | Visited Scrapoid Pod Storage 5999 | -9/Scraptown | Visited Curators Association 6042 | -9/Scraptown | Visited Scrap Suit Storage 6728 | -9/Scraptown | Found DRS Beacon 8299 | -9/Scraptown | Build established: Mutant 8411 | -9/Scraptown | Tech Extrapolator generated special schematic: Deep Structural Scanner 8904 | -9/Scraptown | Tech Extrapolator generated special schematic: Machine Rigger 9646 | -9/Scraptown | Found Scrapoid Pod 9712 | -9/Scraptown | Given a B- rating by A0-MCA 9791 | -9/Scraptown | Build established: Hauler-Mutant 9835 | -9/Scraptown | Met Optimus 9835 | -9/Scraptown | Accepted into 0bPrime 9944 | -9/Scraptown | Entered Factory 9944 | -6/Factory | Evolved 8 slots: Power x1, Propulsion x2, Utility x3, Weapon x2 10307 | -6/Factory | Build established: Derelict-Gunner 10906 | -6/Factory | Identified exit to Lower Caves 10906 | -6/Factory | Identified exit to Extension 10912 | -6/Factory | Central database locked down 10932 | -6/Factory | Build established: Tank 11269 | -6/Factory | Entered Lower Caves 11326 | -6/Lower Caves | Scrapoid Pod released 06L07-D (x5) 11400 | -6/Lower Caves | Spotted B-75 Beast 11416 | -6/Lower Caves | Allies destroyed B-75 Beast 11626 | -6/Lower Caves | Build established: Skirmisher 11807 | -6/Lower Caves | Found DCF Scrap (12 items) 11945 | -6/Lower Caves | Learned location of 1 exit from Factory 12110 | -6/Lower Caves | Build established: Derelict-Skirmisher 12612 | -6/Lower Caves | Discovered new exit (range 16) 12745 | -6/Lower Caves | Identified exit to Lower Caves 12834 | -6/Lower Caves | Entered another Lower Caves area 12834 | -6/Lower Caves | Accompanied by 5 allies 13105 | -6/Lower Caves | Encountered a Warlord checkpoint 13113 | -6/Lower Caves | Discovered new exit (range 5) 13138 | -6/Lower Caves | Identified exit to Factory 13248 | -6/Lower Caves | Found DRS Beacon 13423 | -6/Lower Caves | Identified exit to Data Miner 14476 | -6/Lower Caves | Entered Data Miner 14476 | -6/Data Miner | Accompanied by 4 allies 14476 | -6/Data Miner | Discovered new exit (range 6) 14507 | -6/Data Miner | Met Data Miner 14556 | -6/Data Miner | Learned location of Section 7 (-2) 14556 | -6/Data Miner | Acquired the access code to Warlord's prototype stash 14577 | -6/Data Miner | Received God Mode back door access code from Data Miner 14616 | -6/Data Miner | Identified exit to Proximity Caves 14620 | -6/Data Miner | Entered Proximity Caves 14620 | -5/Proximity Caves | Accompanied by 4 allies 14625 | -5/Proximity Caves | Activated DRS Beacon 14758 | -5/Proximity Caves | Learned location of 1 exit from Upper Caves 15789 | -5/Proximity Caves | Learned Factory emergency access door positions 16354 | -5/Proximity Caves | Entered Factory 16354 | -5/Factory | Accompanied by 2 allies 16354 | -5/Factory | Evolved 2 slots: Utility x1, Weapon x1 16355 | -5/Factory | Identified exit to Factory 16529 | -5/Factory | Repaired Gatling Laser 16722 | -5/Factory | Loaded intel: 8 recycling unit locations 16874 | -5/Factory | Fabricated B-48 Gladiator? 17248 | -5/Factory | Destroyed 7 combat bots 17308 | -5/Factory | Cargo convoy interrupted 17328 | -5/Factory | Incoming assault squad redirected 17333 | -5/Factory | Incoming assault squad redirected 17340 | -5/Factory | Garrison activated, responded to threat 17345 | -5/Factory | Incoming investigation squad redirected 17421 | -5/Factory | System corruption reached 10% 17432 | -5/Factory | Destroyed 11 combat bots 17434 | -5/Factory | Lost 15 parts (1p4n4u6w) 17465 | -5/Factory | Found Prototype Launcher 17465 | -5/Factory | Identified Tactical Quantum Warhead 17468 | -5/Factory | Core integrity fell below 50% 17510 | -5/Factory | Lost 4 parts (1n2u1w) 17608 | -5/Factory | Scrapoids reinforcements arrived? 17618 | -5/Factory | Incoming investigation squad redirected 17623 | -5/Factory | Scrapoid reinforcements arrived 17635 | -5/Factory | Identified exit to Garrison 17636 | -5/Factory | Entered Garrison 17640 | -5/Garrison | Triggered checkpoint 17642 | -5/Garrison | Triggered checkpoint 17650 | -5/Garrison | Triggered checkpoint 17678 | -5/Garrison | Lost 3 parts (2u1w) 17679 | -5/Garrison | Core integrity fell below 20% 17693 | -5/Garrison | Discovered exit to Factory (range 8) 17696 | -5/Garrison | Entered Factory 17696 | -4/Factory | Evolved 2 slots: Power x1, Propulsion x1 17934 | -4/Factory | Identified exit to Research 18026 | -4/Factory | Build established: Scavenger-Sprinter 18062 | -4/Factory | Repaired Plasma Lance? 18258 | -4/Factory | Fabricated Lgt. Regenerative Plating? 18349 | -4/Factory | Entered Research 18349 | -3/Research | Evolved 2 slots: Propulsion x1, Utility x1 18428 | -3/Research | Identified exit to DSF 18453 | -3/Research | Entered DSF 18459 | -3/DSF | Discovered new exit (range 16) 18468 | -3/DSF | Identified exit to Research 18468 | -3/DSF | Entered Research 18468 | -2/Research | Evolved 2 slots: Utility x2 18597 | -2/Research | Identified exit to Access 18687 | -2/Research | Entered Access 18687 | -1/Access | Evolved 2 slots: Propulsion x1, Utility x1 19038 | -1/Access | Energy Cycler disabled 19059 | -1/Access | Discovered new exit (range 6) 19060 | -1/Access | Identified exit to Surface 19060 | *** | Escaped! Last Messages --------------- 19038_ ALERT: Power surge detected, dispatching additional patrols. 19038_ Energy Cycler explodes. 19047_ Connecting with Repair Station... >>Force(Patch) PATCHED[Adv. Sensor Array] PATCHED[Field Propulsion Array] PATCHED[Drone Bay] PATCHED[Power Sword] PATCHED[Med. Storage Unit] 19047_ ALERT: Suspicious activity at Repair Station A003. Dispatching Investigation squad. 19051_ Connecting with Repair Station... >>Force(Patch) PATCHED[Adv. Sensor Array] PATCHED[Field Propulsion Array] 19051_ ALERT: Suspicious activity at Repair Station A001. Dispatching Investigation squad. 19059_ The Access Shell folds into the floor. 19059_ EXIT=FOUND 19060_ EXIT=IDENTIFIED: SURFACE Map ----- +----------------------------------------------------+ | ?????????????????????????????????????????????????? | | ?????????????????????????????????????????????????? | | ?????????????????????????????????????????????????? | | ?????????????????????????????????????????????????? | | ?????????????????????????????????????????????????? | | ?????????????????????????????????????????????????? | | ?????????????????????????????????????????????????? | | ?????????????????????????????????????????????????? | | ?????????????????????????????????????????????????? | | ?????????????????????????????????????????????????? | | ?????????????????????????????????????????????????? | | ?????????????????????????????????????????????????? | | ??????????? ?????????????????????????????????????? | | ??????????# ????????????????????????????????????? | | ??????????+ R????????????????????????????????????? | | ??????????# k????????????????????????????????????? | | ??????????#u ????????????????????????????????????? | | ??????????# #???????????????????????????????????? | | ??????????#u #?????###???????????????????????????? | | ??????????# u####### ##########??????????????????? | | ??????????# """T""" "??????????????????? | | ??????????# """ """ "????BB????????????? | | ??????????# "????BB #####+### | | ??????????# "?????? | | ??????????#k "" "????? | | ??????????#R @" "????? | | ??????????# "????? | | ??????????# k "????BB?????######## | | ??????????# "????BB?????# | | ??????????# "???????????# | | ?????###??# ####### ##########???????????# | | ????? #??# #?????###????????????????????# | | ?????# #??# #?????????????###########????# | | ?????# #??# #?????????????# #????# | | ?????# #??# #?????????????# #????# | | ?????# #??# k#?????????????? ?????# | | ???### #??# #???????????????? ???????# // | | ???? #??# ###########???????#+########## /] | | ######+#### # #???????# / /! | | # # # #???????# ########## | | + # # #???????# #????????#######+ | | # """ # # " " #???????# #??????????????# | | # """ / + ""R"" #???????# #??????????????# | | # R" # # """"" #???????# ##????????###??# | | # """ + # #???????# #???????##"####+ | | # # # #???????# +???????# ! | | # # ###########???????# #???????# !%[ | | ########### ##???##########???# #???????# =! | | ??????????# # ? ??# #???????# """ | | ??????????# # * ??# #???????# """" | +----------------------------------------------------+ Best States ------------- Heat Dissipation 100 Energy Generation 49 Energy Capacity 725 Matter Stores 300 Matter Capacity 300 Sight Range 16 Robot Scan Range 16 Terrain Scan Density 10 Jamming Range 14 Cloak Strength 2 Additional Mass Support 12 Base Temperature (-) 100 Armor Coverage 225 Utility Shielding 66 Melee Speed Boost 30 Evasion (%) 76 Melee Accuracy 8 Recoil Reduction 4 Particle Charging 20 Offensive Hacking 22 Authchip Count 2 Item Schematics ----------------- Trap Extractor | -9/Recycling | Hacked Spk. Treads | -9/Scraptown | Extrapolated Lgt. Humpback | -9/Scraptown | Extrapolated Mak. Leg | -9/Scraptown | Extrapolated Mak. Coolant Network | -9/Scraptown | Extrapolated Deep Structural Scanner | -9/Scraptown | Extrapolated 0b10 Decoder Chip [Generic] | -9/Scraptown | Extrapolated 0b10 Decoder Chip [Scout] | -9/Scraptown | Extrapolated 0b10 Decoder Chip [Skirmisher] | -9/Scraptown | Extrapolated Mak. Light Armor Plating | -9/Scraptown | Extrapolated Mak. Medium Armor Plating | -9/Scraptown | Extrapolated Mak. Ablative Armor | -9/Scraptown | Extrapolated Machine Rigger | -9/Scraptown | Extrapolated Battle Rifle | -9/Scraptown | Extrapolated Hyb. Deuterium Engine | -6/Factory | Hacked Combat Drone Bay | -6/Data Miner | Free Lgt. Regenerative Plating | -6/Data Miner | Free Cld. Nuclear Pulse Thruster | -6/Data Miner | Free Prc. Energy Filter | -6/Data Miner | Free Kinetic Spear | -6/Data Miner | Free Imp. Heavy Treads | -6/Data Miner | Free Adv. Power Amplifier | -6/Data Miner | Free Hardcell Cannon | -6/Data Miner | Free Arm. Medium Treads | -5/Factory | Hacked Cryofiber Web | -5/Factory | Scanalyzed Imp. Transmission Jammer | -5/Factory | Scanalyzed Robot Schematics ------------------ B-48 Gladiator | -6/Data Miner | Free Y-64 Sentinel | -6/Data Miner | Free Y-54 Guardian | -6/Data Miner | Free S-27 Virus | -6/Data Miner | Free H-66 Slayer | -6/Data Miner | Free O-32 Director | -6/Data Miner | Free Fabricated ------------ B-48 Gladiator | x3 | -5/Factory | Preloaded Lgt. Regenerative Plating | x1 | -4/Factory Repaired ---------- Lgt. Treads | 55% | -10/Materials Assault Rifle | 68% | -10/Materials Gatling Laser | 28% | -5/Factory Plasma Lance | 18% | -4/Factory Alien Tech Used ----------------- None Achievements -------------- Whoosh! Challenges ------------ None Game ------ Seed ExplosiveEtherialShovel Manual? 1 Play Time 02:30:23 Cumulative 574.7 hours Start 2025.08.08 @ 10:21:18 End 2025.08.08 @ 14:08:31 Sessions 5 Manual Loads 0 Difficulty Rogue Special Mode None Game No. 327 Rogue 302 Adventurer 7 Explorer 18 Win Type 0 Total 47 Types 30/0/8/2/0/1/1/3/0/2 Lore% 95 Gallery% 91 Achievement% 82 Wizard Run 0 Options --------- Layout 0 ASCII 0 Keyboard 0 Movement Numpad Keybinds 0 Fullscreen 1 Font 12/Smallcaps Map View 83x54 Zoom Use 0% Tactical HUD 1 Map Filters NONE Filters NONE Steam 1 RUN: 3e5bcc58-7c54-419c-90e8-93a817c224c6